bitfinex/quotes_BTCUSD_20230114
["timestamp","ask_amount","ask_price","bid_price","bid_amount"]
[1673677063805,0.44592875,20914.0,20912.0,0.16637319]
[1673677064072,0.58192875,20914.0,20912.0,0.16637319]
[1673677064317,0.58192875,20914.0,20911.0,0.6489562]
[1673677064565,0.58192875,20914.0,20911.0,1.1271542]
[1673677064812,0.44592875,20914.0,20912.0,0.20863]
[1673677065056,0.58192875,20914.0,20911.0,0.6489562]
[1673677065337,0.44592875,20914.0,20911.0,0.6489562]
[1673677066080,0.58192875,20914.0,20911.0,0.6489562]
[1673677066335,0.17139731,20913.0,20910.0,0.04940545]
[1673677066587,0.1,20912.0,20910.0,0.04940545]
[1673677066845,0.38205774,20912.0,20910.0,0.04940545]
[1673677067099,0.08158233,20911.0,20909.0,0.16315247]
[1673677067834,0.18158233,20911.0,20909.0,0.16315247]
[1673677068289,0.48158233,20911.0,20909.0,0.16315247]
[1673677068583,0.60258233,20911.0,20909.0,0.16315247]
[1673677068838,0.60258233,20911.0,20909.0,0.00218754]
[1673677069351,0.1,20910.0,20906.0,0.21329259]
[1673677069610,0.27922907,20910.0,20906.0,0.23045235]
[1673677069870,0.57922907,20910.0,20906.0,0.1827264]
[1673677070363,0.57922907,20910.0,20906.0,0.1823064]
[1673677070613,1.05746907,20910.0,20906.0,0.1823064]
[1673677070883,1.54970907,20910.0,20906.0,0.1833064]
[1673677071377,1.54970907,20910.0,20906.0,0.37384235]
[1673677071883,1.54970907,20910.0,20906.0,0.19172595]
[1673677072125,0.1881232,20909.0,20906.0,0.001]
[1673677072371,0.4881232,20909.0,20906.0,0.001]
[1673677073143,0.4881232,20909.0,20907.0,0.208695]
[1673677073404,0.4881232,20909.0,20905.0,1.27391531]
[1673677073648,0.5021232,20909.0,20906.0,0.209705]
[1673677073891,0.5021232,20909.0,20906.0,0.001]
[1673677074141,0.2021232,20909.0,20907.0,0.54489361]
[1673677074390,0.04969839,20911.0,20908.0,0.1853711]
[1673677074638,0.016,20909.0,20908.0,0.37609705]
[1673677074884,0.016,20909.0,20908.0,0.1853711]
[1673677075135,0.014,20909.0,20908.0,0.128]
[1673677075386,0.24326788,20911.0,20908.0,0.28424667]
[1673677075882,0.04969839,20911.0,20908.0,1.43154262]
[1673677076126,0.09669839,20911.0,20908.0,1.24081667]
[1673677076874,0.09669839,20911.0,20908.0,1.45410926]
[1673677077115,0.09669839,20911.0,20909.0,0.16797028]
[1673677077358,0.09669839,20911.0,20909.0,0.64622828]
[1673677077585,0.047,20911.0,20909.0,0.64622828]
[1673677077860,0.19877895,20912.0,20909.0,0.64622828]
[1673677078136,0.49877895,20912.0,20909.0,0.64622828]
[1673677078373,0.121,20911.0,20909.0,0.64622828]
[1673677078887,0.19877895,20912.0,20909.0,0.64622828]
[1673677079123,0.61977895,20912.0,20909.0,0.64622828]
[1673677079378,0.49877895,20912.0,20909.0,0.64622828]
[1673677080142,0.49877895,20912.0,20909.0,0.16797028]
[1673677080393,0.61977895,20912.0,20909.0,0.16797028]
[1673677080895,0.61977895,20912.0,20910.0,0.15443954]
[1673677081390,0.44927706,20912.0,20910.0,0.15443954]
[1673677081652,0.19087008,20911.0,20908.0,0.19036302]
[1673677081902,0.49087008,20911.0,20908.0,0.19036302]
[1673677082627,0.29087008,20911.0,20908.0,0.19036302]
[1673677082878,0.33787008,20911.0,20908.0,0.19036302]
[1673677083374,0.23787008,20911.0,20908.0,0.19036302]
[1673677083625,0.33787008,20911.0,20908.0,0.19036302]
[1673677084372,0.23787008,20911.0,20908.0,0.19036302]
[1673677085372,0.33787008,20911.0,20908.0,0.19036302]
[1673677085617,0.23787008,20911.0,20908.0,0.19036302]
[1673677085853,0.3,20910.0,20908.0,0.19036302]
[1673677086304,0.33787008,20911.0,20908.0,0.19036302]
[1673677086583,0.23787008,20911.0,20908.0,0.19036302]
[1673677086833,0.047,20911.0,20908.0,0.66864502]
[1673677087346,0.047,20911.0,20908.0,1.28913243]
[1673677087597,0.047,20911.0,20908.0,1.28949536]
[1673677087843,0.047,20911.0,20909.0,0.15839543]
[1673677088088,0.047,20911.0,20909.0,0.63664843]
[1673677088576,0.17658939,20913.0,20909.0,0.77885084]
[1673677088814,0.121,20911.0,20909.0,0.81118136]
[1673677089086,0.121,20911.0,20909.0,0.62045541]
[1673677089323,0.121,20911.0,20909.0,0.77277274]
[1673677090548,0.121,20911.0,20909.0,0.62045541]
[1673677090800,0.121,20911.0,20909.0,0.833748]
[1673677091075,0.121,20911.0,20910.0,0.15382602]
[1673677091327,0.121,20911.0,20910.0,0.50932102]
[1673677091579,0.121,20911.0,20910.0,0.98756102]
[1673677092080,0.52808532,20914.0,20910.0,0.98756102]
[1673677092341,0.52808532,20914.0,20911.0,0.14220241]
[1673677092573,0.52808532,20914.0,20911.0,0.33292836]
[1673677092845,0.04993432,20914.0,20911.0,0.14220241]
[1673677093403,0.18493432,20914.0,20911.0,0.14220241]
[1673677093651,0.18493432,20914.0,20912.0,0.17737901]
[1673677094131,0.135,20914.0,20912.0,0.17737901]
[1673677094867,1.4075605,20915.0,20912.0,0.17737901]
[1673677095111,0.436,20914.0,20912.0,0.17737901]
[1673677095371,0.136,20914.0,20912.0,0.17737901]
[1673677095868,1.2617205,20915.0,20912.0,0.17737901]
[1673677097397,0.56177247,20915.0,20913.0,0.19072595]
[1673677097663,0.56177247,20915.0,20914.0,0.956296]
[1673677097934,0.60677247,20915.0,20914.0,0.956296]
[1673677098178,0.60677247,20915.0,20914.0,1.11332566]
[1673677098383,0.56177247,20915.0,20914.0,0.956296]
[1673677098899,0.56177247,20915.0,20914.0,0.66131599]
[1673677099106,0.56177247,20915.0,20914.0,1.13946399]
[1673677099340,0.60677247,20915.0,20914.0,1.25046399]
[1673677099651,0.60677247,20915.0,20914.0,1.23946399]
[1673677100133,0.60677247,20915.0,20914.0,1.13946399]
[1673677100381,0.65177247,20915.0,20914.0,1.14846399]
[1673677100617,0.56177247,20915.0,20914.0,1.13946399]
[1673677101111,0.60677247,20915.0,20914.0,1.13508207]
[1673677102108,0.60677247,20915.0,20914.0,0.965296]
[1673677102374,0.60677247,20915.0,20914.0,1.15602195]
[1673677102613,0.47516774,20915.0,20914.0,2.73240686]
[1673677102859,0.47516774,20915.0,20914.0,5.44843517]
[1673677103101,0.47516774,20915.0,20914.0,5.73239776]
[1673677103346,0.04773012,20917.0,20915.0,0.1]
[1673677103583,0.04773012,20917.0,20916.0,2.18688476]
[1673677103850,0.01486849,20919.0,20916.0,1.90306833]
[1673677104095,0.01486849,20919.0,20917.0,0.128]
[1673677104370,0.01486849,20919.0,20918.0,1.534171]
[1673677104859,0.01486849,20919.0,20918.0,5.534171]
[1673677105106,0.05086849,20919.0,20918.0,4.534171]
[1673677105368,0.01486849,20919.0,20918.0,4.434171]
[1673677106628,0.12186849,20919.0,20918.0,4.441171]
[1673677107365,0.06181801,20919.0,20918.0,4.441171]
[1673677107612,0.06181801,20919.0,20918.0,4.65403333]
[1673677107872,0.06181801,20919.0,20918.0,4.441171]
[1673677108120,0.06181801,20919.0,20918.0,4.93784976]
[1673677108379,0.01570907,20921.0,20918.0,4.93084976]
[1673677108611,0.005,20919.0,20918.0,4.77203333]
[1673677108892,0.005,20919.0,20918.0,4.559171]
[1673677109123,0.005,20919.0,20918.0,7.70061318]
[1673677109361,0.01570907,20921.0,20918.0,7.57561318]
[1673677109599,0.03491272,20922.0,20919.0,0.1]
[1673677109863,0.00368861,20924.0,20920.0,1.434033]
[1673677110108,0.00368861,20924.0,20920.0,1.63325895]
[1673677110361,0.00368861,20924.0,20921.0,0.1]
[1673677110614,0.00368861,20924.0,20922.0,0.96443]
[1673677111121,0.16479153,20924.0,20922.0,0.96443]
[1673677111365,0.16479153,20924.0,20921.0,0.477981]
[1673677111366,0.00768861,20924.0,20920.0,0.387511]
[1673677111624,0.00768861,20924.0,20923.0,0.07139]
[1673677112108,0.14793902,20924.0,20921.0,0.63050839]
[1673677112349,0.16365945,20923.0,20922.0,0.006]
[1673677112619,0.16365945,20923.0,20921.0,0.15252139]
[1673677113111,0.16365945,20923.0,20921.0,3.15252139]
[1673677113348,0.22365945,20923.0,20922.0,0.006]
[1673677113616,0.22365945,20923.0,20922.0,0.0085]
[1673677113872,0.23665945,20923.0,20922.0,0.0085]
[1673677114158,0.16365945,20923.0,20922.0,0.0085]
[1673677114388,0.072,20923.0,20922.0,0.08589]
[1673677114632,0.072,20923.0,20922.0,0.23284622]
[1673677115626,0.00368861,20924.0,20922.0,0.22684622]
[1673677115876,0.072,20923.0,20922.0,0.23284622]
[1673677116111,0.00368861,20924.0,20922.0,0.22684622]
[1673677116409,0.071,20923.0,20922.0,0.0185]
[1673677117136,0.26768782,20923.0,20922.0,0.0185]
[1673677117394,1.775612,20923.0,20922.0,0.01]
[1673677117643,1.92126567,20923.0,20922.0,0.01]
[1673677118116,2.02126567,20923.0,20922.0,0.01]
[1673677119118,1.92126567,20923.0,20922.0,0.01]
[1673677120098,1.92126567,20923.0,20922.0,0.0185]
[1673677121395,2.02126567,20923.0,20922.0,0.0185]
[1673677121903,1.92126567,20923.0,20922.0,0.0185]
[1673677122907,1.82761668,20923.0,20922.0,0.0185]
[1673677123157,1.40678868,20923.0,20922.0,0.0185]
[1673677123410,0.477942,20923.0,20922.0,0.23614712]
[1673677123662,0.48162561,20924.0,20922.0,0.16475712]
[1673677123907,0.48162561,20924.0,20923.0,0.07989]
[1673677124152,0.00368861,20924.0,20923.0,0.23736099]
[1673677125631,0.11268861,20924.0,20923.0,0.24436099]
[1673677125889,0.00368861,20924.0,20923.0,0.23736099]
[1673677126124,0.11268861,20924.0,20923.0,0.24436099]
[1673677126369,0.11268861,20924.0,20923.0,0.26013174]
[1673677126618,0.00368861,20924.0,20923.0,0.25313174]
[1673677126863,0.10368861,20924.0,20923.0,0.26113174]
[1673677127614,0.00368861,20924.0,20923.0,0.39457392]
[1673677128372,0.00368861,20924.0,20923.0,0.25313174]
[1673677128616,0.10368861,20924.0,20923.0,0.26113174]
[1673677128867,0.00368861,20924.0,20923.0,0.25313174]
[1673677129128,0.10368861,20924.0,20923.0,0.26113174]
[1673677130377,0.10368861,20924.0,20923.0,0.40257392]
[1673677130621,0.10368861,20924.0,20923.0,0.26113174]
[1673677132114,0.10368861,20924.0,20923.0,0.18974174]
[1673677132829,0.10368861,20924.0,20923.0,0.33118392]
[1673677133071,0.58160861,20924.0,20923.0,0.32268392]
[1673677133350,0.58160861,20924.0,20923.0,0.18124174]
[1673677134095,0.10368861,20924.0,20923.0,0.32268392]
[1673677134364,0.10368861,20924.0,20923.0,0.53554625]
[1673677134618,0.10368861,20924.0,20923.0,0.53588873]
[1673677134873,0.03554488,20924.0,20923.0,0.39410407]
[1673677135118,0.19766396,20923.0,20922.0,0.28352757]
[1673677135377,0.19766396,20923.0,20922.0,0.29202757]
[1673677135622,0.19766396,20923.0,20922.0,0.15028108]
[1673677135897,0.18037765,20923.0,20922.0,0.0085]
[1673677136150,0.22937765,20923.0,20922.0,0.15728108]
[1673677136394,0.22937765,20923.0,20922.0,0.0155]
[1673677137388,0.22937765,20923.0,20922.0,0.15739136]
[1673677137389,0.70731965,20923.0,20922.0,0.15739136]
[1673677138395,0.70731965,20923.0,20922.0,0.15745668]
[1673677138885,0.049,20923.0,20922.0,0.37041757]
[1673677139129,0.049,20923.0,20922.0,0.26690631]
[1673677140371,0.049,20923.0,20922.0,0.55093613]
[1673677140885,0.049,20923.0,20922.0,0.0155]
[1673677141141,1.18233427,20923.0,20922.0,0.15755583]
[1673677141377,1.48233427,20923.0,20922.0,0.15755583]
[1673677141619,1.48233427,20923.0,20922.0,0.0155]
[1673677141883,1.93086227,20923.0,20922.0,0.0155]
[1673677142133,1.93086227,20923.0,20922.0,0.007]
[1673677142367,1.61003427,20923.0,20922.0,0.007]
[1673677142615,1.93086227,20923.0,20922.0,0.007]
[1673677142863,1.853412,20923.0,20922.0,0.007]
[1673677143113,1.432584,20923.0,20922.0,0.007]
[1673677143351,1.5995914,20923.0,20922.0,0.007]
[1673677144067,1.5995914,20923.0,20922.0,0.0155]
[1673677144848,1.9204194,20923.0,20922.0,0.0155]
[1673677145133,1.8132934,20923.0,20922.0,0.0155]
[1673677145383,1.6995914,20923.0,20922.0,0.0155]
[1673677145622,1.9204194,20923.0,20922.0,0.0155]
[1673677146101,1.5995914,20923.0,20922.0,0.0155]
[1673677146406,1.004884,20923.0,20922.0,0.18950427]
[1673677147162,1.004884,20923.0,20922.0,0.3315601]
[1673677148504,1.004884,20923.0,20922.0,0.18950427]
[1673677148949,1.004884,20923.0,20922.0,0.0155]
[1673677149191,1.25638571,20923.0,20922.0,0.0155]
[1673677149940,1.25638571,20923.0,20922.0,0.0085]
[1673677150175,1.25638571,20923.0,20921.0,0.0085]
[1673677150432,0.4,20922.0,20921.0,0.0085]
[1673677150677,1.35593,20922.0,20921.0,0.0085]
[1673677151158,1.35593,20922.0,20921.0,0.0105]
[1673677151394,1.25593,20922.0,20921.0,0.0085]
[1673677151886,1.27593,20922.0,20921.0,0.0105]
[1673677152383,0.497965,20922.0,20921.0,0.27945003]
[1673677152883,0.02,20922.0,20921.0,0.27945003]
[1673677156154,0.03,20922.0,20921.0,0.27945003]
[1673677158865,0.03,20922.0,20921.0,0.08189]
[1673677159353,0.03,20922.0,20921.0,0.22394583]
[1673677159835,0.03,20922.0,20921.0,0.43723388]
[1673677160140,0.03,20922.0,20921.0,0.59774967]
[1673677160393,0.03,20922.0,20921.0,0.38446162]
[1673677162104,0.477903,20925.0,20921.0,0.22394583]
[1673677162349,0.477903,20925.0,20922.0,0.17549289]
[1673677162596,0.477903,20925.0,20923.0,0.0085]
[1673677163337,0.477903,20925.0,20923.0,0.20390318]
[1673677163583,0.553903,20925.0,20924.0,0.14723521]
[1673677163826,0.477903,20925.0,20924.0,0.15573521]
[1673677164067,0.552903,20925.0,20924.0,0.15573521]
[1673677164304,0.477903,20925.0,20924.0,0.15573521]
[1673677164541,0.552903,20925.0,20924.0,0.16473521]
[1673677166243,0.075,20925.0,20924.0,0.16473521]
[1673677169257,0.075,20925.0,20924.0,0.15973521]
[1673677173461,0.075,20925.0,20924.0,0.49542]
[1673677173704,0.075,20925.0,20924.0,0.66835256]
[1673677173942,0.075,20925.0,20924.0,0.19043256]
[1673677175208,0.075,20925.0,20924.0,0.0175]
[1673677176210,0.075,20925.0,20924.0,0.07335]
[1673677176451,0.01974728,20926.0,20924.0,0.07335]
[1673677176689,0.004,20925.0,20924.0,0.13335]
[1673677177434,0.004,20925.0,20924.0,0.37540583]
[1673677177693,0.004,20925.0,20924.0,1.33124583]
[1673677177942,0.004,20925.0,20924.0,0.60670476]
[1673677178192,0.004,20925.0,20924.0,0.06]
[1673677178439,0.004,20925.0,20924.0,0.53792]
[1673677178955,0.004,20925.0,20924.0,0.06]
[1673677179210,0.47294924,20925.0,20924.0,0.06]
[1673677179453,0.17294924,20925.0,20924.0,0.06]
[1673677181443,0.004,20925.0,20924.0,0.06]
[1673677183980,0.004,20925.0,20924.0,0.53792]
[1673677189431,0.004,20925.0,20924.0,0.06]
[1673677191193,0.15183483,20925.0,20924.0,0.06]
[1673677193414,0.004,20925.0,20924.0,0.06]
[1673677196948,0.86244637,20925.0,20924.0,0.06]
[1673677197193,1.61087437,20925.0,20924.0,0.06]
[1673677197931,2.08877137,20925.0,20924.0,0.06]
[1673677198177,2.18877137,20925.0,20924.0,0.06]
[1673677198429,2.002542,20925.0,20924.0,0.06]
[1673677198666,2.16038928,20925.0,20924.0,0.06]
[1673677198979,2.06038928,20925.0,20924.0,0.06]
[1673677199217,2.16038928,20925.0,20924.0,0.06]
[1673677200237,2.002542,20925.0,20924.0,0.06]
[1673677200478,2.1765021,20925.0,20924.0,0.06]
[1673677202444,2.1765021,20925.0,20924.0,0.0557843]
[1673677202940,2.1765021,20925.0,20924.0,0.05552595]
[1673677204018,2.0765021,20925.0,20924.0,0.05552595]
[1673677205940,2.1765021,20925.0,20924.0,0.05552595]
[1673677206189,2.002542,20925.0,20924.0,0.05552595]
[1673677206440,4.19082979,20925.0,20924.0,0.05552595]
[1673677206937,4.19196872,20925.0,20924.0,0.05552595]
[1673677208193,3.12144369,20925.0,20924.0,0.05552595]
[1673677208438,3.19844369,20925.0,20924.0,0.007]
[1673677208699,3.11744369,20925.0,20920.0,0.04971662]
[1673677208948,0.1279,20921.0,20917.0,0.00479352]
[1673677209203,0.1282,20919.0,20917.0,0.00479352]
[1673677209446,0.606044,20919.0,20917.0,0.00479352]
[1673677209957,0.3,20921.0,20917.0,0.00479352]
[1673677209958,0.1279,20921.0,20917.0,0.48286952]
[1673677210226,0.606184,20922.0,20917.0,0.8156513]
[1673677210476,0.007,20919.0,20917.0,0.9226513]
[1673677210702,0.007,20919.0,20918.0,0.24205583]
[1673677210947,0.007,20919.0,20918.0,1.19816983]
[1673677211192,0.00019,20921.0,20918.0,1.19816983]
[1673677211442,0.00019,20921.0,20918.0,1.38889578]
[1673677211676,0.00019,20921.0,20918.0,1.19816983]
[1673677211928,0.007,20919.0,20918.0,1.99312964]
[1673677212192,0.00019,20921.0,20918.0,1.41084603]
[1673677212450,0.00719,20921.0,20918.0,1.5178509]
[1673677212697,0.00019,20921.0,20919.0,0.14189768]
[1673677212948,0.1291,20925.0,20920.0,1.056022]
[1673677213225,0.1291,20925.0,20921.0,0.19072595]
[1673677213462,0.1291,20925.0,20922.0,0.66868795]
[1673677213980,0.1291,20925.0,20923.0,0.1]
[1673677214237,0.1291,20925.0,20922.0,0.477962]
[1673677214486,0.2061,20925.0,20922.0,0.484962]
[1673677214725,0.1291,20925.0,20922.0,0.477962]
[1673677214977,0.2061,20925.0,20923.0,0.009]
[1673677215227,0.2061,20925.0,20922.0,0.477962]
[1673677215474,0.2831,20925.0,20922.0,0.484962]
[1673677215731,0.1291,20925.0,20922.0,0.477962]
[1673677215970,0.2061,20925.0,20923.0,0.009]
[1673677216714,0.2061,20925.0,20922.0,0.477962]
[1673677216954,0.2061,20925.0,20922.0,0.484962]
[1673677217209,0.2061,20925.0,20922.0,0.477962]
[1673677217455,0.2831,20925.0,20923.0,0.009]
[1673677217706,0.1291,20925.0,20922.0,0.477962]
[1673677217966,0.2011,20925.0,20922.0,0.484962]
[1673677218223,0.1291,20925.0,20922.0,0.477962]
[1673677218463,0.1441,20925.0,20922.0,0.477962]
[1673677218716,0.1291,20925.0,20922.0,0.477962]
[1673677219679,0.1331,20925.0,20922.0,0.533962]
[1673677219923,0.31593916,20925.0,20922.0,0.533962]
[1673677220157,0.4649638,20924.0,20922.0,0.056]
[1673677220705,0.1282,20923.0,20922.0,0.056]
[1673677220939,0.606142,20923.0,20920.0,0.84716772]
[1673677221182,0.606142,20923.0,20922.0,0.056]
[1673677221420,1.08657565,20923.0,20922.0,0.056]
[1673677221910,1.08657565,20923.0,20920.0,0.84716772]
[1673677222159,1.08657565,20923.0,20922.0,0.056]
[1673677222160,1.09057565,20923.0,20922.0,0.056]
[1673677223403,0.1322,20923.0,20922.0,0.056]
[1673677225666,0.004,20923.0,20922.0,0.056]
[1673677227162,0.28022457,20925.0,20922.0,0.056]
[1673677228139,0.28022457,20925.0,20921.0,0.955956]
[1673677228398,0.28422457,20925.0,20922.0,0.058]
[1673677231436,0.16405804,20924.0,20922.0,0.058]
[1673677232180,0.16405804,20924.0,20920.0,1.9450504]
[1673677232430,0.16405804,20924.0,20920.0,2.15788962]
[1673677232932,0.607001,20925.0,20920.0,2.34861557]
[1673677233191,0.004,20924.0,20922.0,0.058]
[1673677233432,0.2737462,20925.0,20921.0,0.47798]
[1673677233687,0.006,20924.0,20921.0,0.66870595]
[1673677233933,0.2737462,20925.0,20921.0,0.47798]
[1673677234178,0.2797462,20925.0,20921.0,0.47798]
[1673677234446,0.2737462,20925.0,20921.0,0.47798]
[1673677234691,0.2797462,20925.0,20921.0,0.59498]
[1673677235440,0.17941746,20924.0,20921.0,0.117]
[1673677235692,0.47941746,20924.0,20921.0,0.117]
[1673677235934,0.95734146,20924.0,20921.0,0.117]
[1673677236434,1.56296146,20924.0,20920.0,0.04786772]
[1673677236681,1.56896146,20924.0,20921.0,0.117]
[1673677237419,0.15648155,20923.0,20921.0,0.117]
[1673677237654,0.93443655,20923.0,20921.0,0.117]
[1673677238402,1.41237855,20923.0,20921.0,0.117]
[1673677238920,0.63442355,20923.0,20921.0,0.117]
[1673677239167,0.63442355,20923.0,20920.0,0.04786772]
[1673677239413,0.64042355,20923.0,20921.0,0.117]
[1673677239901,0.63442355,20923.0,20920.0,0.04786772]
[1673677240141,0.39567821,20923.0,20920.0,0.20301505]
[1673677240385,0.39567821,20923.0,20921.0,0.09229694]
[1673677240649,0.84209822,20926.0,20921.0,0.76100989]
[1673677240910,0.006,20923.0,20922.0,0.19072595]
[1673677241155,0.14228582,20925.0,20921.0,0.71218162]
[1673677241396,0.006,20923.0,20921.0,0.90290757]
[1673677241637,0.006,20923.0,20921.0,0.71218162]
[1673677241890,0.006,20923.0,20921.0,0.92502084]
[1673677242125,0.14228582,20925.0,20921.0,0.71218162]
[1673677242376,0.14228582,20925.0,20921.0,1.01990757]
[1673677242611,0.14228582,20925.0,20921.0,0.90290757]
[1673677242859,0.14228582,20925.0,20922.0,0.13643908]
[1673677242860,0.006,20923.0,20922.0,0.13643908]
[1673677243855,0.306,20925.0,20922.0,0.13643908]
[1673677243856,0.49843907,20925.0,20922.0,0.13643908]
[1673677244704,0.19843907,20925.0,20922.0,0.13643908]
[1673677244953,0.49843907,20925.0,20922.0,0.13643908]
[1673677245200,0.19843907,20925.0,20922.0,0.13643908]
[1673677245713,0.20243907,20925.0,20922.0,0.19443908]
[1673677247950,0.20243907,20925.0,20923.0,0.10221406]
[1673677248975,0.19843907,20925.0,20923.0,0.10221406]
[1673677249242,0.21043907,20925.0,20923.0,0.10221406]
[1673677250998,0.21043907,20925.0,20921.0,1.3106799]
[1673677251244,0.21043907,20925.0,20922.0,0.28196611]
[1673677252029,0.14885403,20924.0,20922.0,0.28196611]
[1673677252265,0.14885403,20924.0,20921.0,0.4717369]
[1673677252503,0.14885403,20924.0,20921.0,0.45277232]
[1673677252758,0.14885403,20924.0,20922.0,0.058]
[1673677252992,0.481897,20925.0,20921.0,0.2399331]
[1673677252993,0.6464946,20925.0,20921.0,0.2399331]
[1673677253233,0.004,20924.0,20922.0,0.24134867]
[1673677253476,0.6464946,20925.0,20922.0,0.18334867]
[1673677253967,0.14435246,20924.0,20922.0,0.32524635]
[1673677254223,0.477897,20925.0,20923.0,0.16182523]
[1673677254482,0.006,20924.0,20923.0,0.16182523]
[1673677254730,0.84187647,20926.0,20923.0,0.16182523]
[1673677254977,0.004,20925.0,20923.0,0.16182523]
[1673677255514,0.016,20925.0,20923.0,0.16182523]
[1673677255759,0.84187647,20926.0,20923.0,0.16182523]
[1673677256012,0.37598347,20926.0,20923.0,0.16182523]
[1673677256268,0.36398347,20926.0,20923.0,0.16182523]
[1673677256526,0.012,20925.0,20923.0,0.16182523]
[1673677257286,0.36398347,20926.0,20923.0,0.16182523]
[1673677257536,0.37598347,20926.0,20923.0,0.16182523]
[1673677258032,0.36398347,20926.0,20923.0,0.16182523]
[1673677258540,0.48118285,20925.0,20923.0,0.16182523]
[1673677260326,0.49318285,20925.0,20923.0,0.16182523]
[1673677260858,0.49318285,20925.0,20921.0,0.61986668]
[1673677261090,0.17362329,20924.0,20921.0,0.80611807]
[1673677261823,0.17334529,20924.0,20921.0,0.80611807]
[1673677262073,0.17334529,20924.0,20921.0,0.14189768]
[1673677262326,0.1282,20923.0,20920.0,0.1897654]
[1673677262562,1.006143,20923.0,20920.0,0.04786772]
[1673677262805,1.484085,20923.0,20920.0,0.04786772]
[1673677263061,1.484085,20923.0,20921.0,0.117]
[1673677263314,1.484085,20923.0,20920.0,0.04786772]
[1673677263557,1.490085,20923.0,20920.0,0.16486772]
[1673677263811,0.27018205,20922.0,20920.0,0.16486772]
[1673677264064,0.17018205,20922.0,20920.0,0.16486772]
[1673677264308,0.4269,20921.0,20920.0,0.117]
[1673677264556,1.803704,20921.0,20920.0,0.117]
[1673677265056,2.08827769,20921.0,20917.0,0.05379475]
[1673677265301,0.1269,20918.0,20917.0,0.05379475]
[1673677265540,1.403842,20918.0,20917.0,0.05379475]
[1673677265793,0.747728,20918.0,20917.0,0.00479352]
[1673677266037,0.1282,20918.0,20917.0,0.1503223]
[1673677266284,0.1282,20918.0,20917.0,0.00479352]
[1673677266535,0.60961697,20918.0,20917.0,0.00479352]
[1673677267284,0.30961697,20918.0,20917.0,0.00479352]
[1673677268246,0.60961697,20918.0,20917.0,0.00380505]
[1673677268510,0.30961697,20918.0,20917.0,0.00380505]
[1673677270097,0.30461697,20918.0,20917.0,0.00380505]
[1673677270354,0.40461697,20918.0,20917.0,0.00380505]
[1673677270615,0.1499011,20917.0,20916.0,0.00472875]
[1673677271351,0.4499011,20917.0,20916.0,0.00472875]
[1673677271847,0.1499011,20917.0,20916.0,0.00472875]
[1673677272366,0.1549011,20917.0,20916.0,0.06872875]
[1673677273145,0.07142,20917.0,20916.0,0.06872875]
[1673677273405,1.0777,20917.0,20916.0,0.06872875]
[1673677273648,1.876604,20917.0,20916.0,0.06872875]
[1673677274898,1.876604,20917.0,20916.0,1.06872875]
[1673677275393,1.776604,20917.0,20916.0,1.06872875]
[1673677275679,1.776604,20917.0,20916.0,0.38287501]
[1673677276174,1.876604,20917.0,20916.0,0.38287501]
[1673677276677,2.05416474,20917.0,20916.0,0.38287501]
[1673677276941,1.876604,20917.0,20916.0,0.38287501]
[1673677277190,2.06103865,20917.0,20916.0,0.38287501]
[1673677279177,1.68961865,20917.0,20916.0,0.38287501]
[1673677279717,1.73838865,20917.0,20916.0,0.38287501]
[1673677280179,2.03838865,20917.0,20916.0,0.38287501]
[1673677280700,1.93838865,20917.0,20916.0,0.38287501]
[1673677281731,2.51559034,20917.0,20916.0,0.38287501]
[1673677282128,2.41559034,20917.0,20916.0,0.38287501]
[1673677282346,2.16776434,20917.0,20916.0,0.38287501]
[1673677282554,2.04599634,20917.0,20916.0,0.38287501]
[1673677282774,2.36682034,20917.0,20916.0,0.38287501]
[1673677283199,2.16776434,20917.0,20916.0,0.38287501]
[1673677283624,2.04599634,20917.0,20916.0,0.38287501]
[1673677284129,2.36682034,20917.0,20916.0,0.38287501]
[1673677285344,2.04599634,20917.0,20916.0,0.37287501]
[1673677285579,2.36682034,20917.0,20916.0,0.37287501]
[1673677285822,2.04599634,20917.0,20916.0,0.37287501]
[1673677286053,2.36682034,20917.0,20916.0,0.37287501]
[1673677286281,2.04599634,20917.0,20916.0,0.37287501]
[1673677287937,1.26879465,20917.0,20916.0,0.37287501]
[1673677288173,0.605879,20918.0,20916.0,0.37287501]
[1673677288451,0.65632846,20919.0,20916.0,0.52282196]
[1673677289154,0.17827746,20919.0,20916.0,0.52282196]
[1673677289386,0.63305468,20920.0,20917.0,0.27628588]
[1673677289707,0.005,20919.0,20917.0,0.37509383]
[1673677289873,0.005,20919.0,20918.0,0.100411]
[1673677290810,0.02682168,20920.0,20918.0,0.100411]
[1673677291049,0.06,20919.0,20918.0,0.0085]
[1673677291268,0.02682168,20920.0,20918.0,0.0085]
[1673677291506,0.099,20919.0,20918.0,0.0165]
[1673677291980,0.00019,20921.0,20918.0,0.28579289]
[1673677292267,0.64631497,20922.0,20918.0,0.19388289]
[1673677292495,0.64631497,20922.0,20918.0,0.38460884]
[1673677292730,0.77513171,20923.0,20918.0,1.34802315]
[1673677292959,0.77513171,20923.0,20919.0,0.28262795]
[1673677293206,0.77513171,20923.0,20920.0,0.0085]
[1673677293440,0.77513171,20923.0,20920.0,0.19922595]
[1673677293698,0.29716971,20923.0,20920.0,0.19922595]
[1673677293929,0.29716971,20923.0,20920.0,0.0085]
[1673677294194,0.29716971,20923.0,20919.0,0.924548]
[1673677294951,0.29716971,20923.0,20920.0,0.15602464]
[1673677295187,0.30716971,20923.0,20920.0,0.15602464]
[1673677296656,0.29716971,20923.0,20920.0,0.15602464]
[1673677297389,0.30616971,20923.0,20920.0,0.15602464]
[1673677298106,0.3,20922.0,20920.0,0.15602464]
[1673677298352,0.30616971,20923.0,20920.0,0.15602464]
[1673677299314,0.19118243,20922.0,20917.0,0.19146294]
[1673677299555,0.19118243,20922.0,20918.0,0.16394284]
[1673677299556,0.605897,20921.0,20918.0,0.16394284]
[1673677299837,0.605897,20921.0,20917.0,0.04956526]
[1673677299838,0.605897,20921.0,20919.0,0.16481723]
[1673677300034,0.605897,20921.0,20917.0,0.52745126]
[1673677300259,0.605897,20921.0,20918.0,0.17293818]
[1673677300736,0.605897,20921.0,20919.0,0.053]
[1673677300962,0.75834658,20921.0,20918.0,0.17293818]
[1673677301221,0.15244958,20921.0,20918.0,0.36366413]
[1673677301456,0.001,20921.0,20919.0,0.0919]